[Event "GER-ch Youth-U12 2022"]
[Site "Willingen"]
[Date "2022.06.11"]
[Round "9.8"]
[White "Blodig, Vincent"]
[Black "Aniol, Nico"]
[Result "0-1"]
[ECO "B32"]
[WhiteElo "1461"]
[BlackElo "1494"]
[Annotator "NA RC COMBH"]
[PlyCount "138"]
[EventDate "2022.06.05"]
[EventType "swiss"]
[EventRounds "9"]
[EventCountry "GER"]
[SourceTitle "playchess.com"]
[Source "ChessBase"]
[SourceQuality "1"]
[TimeControl "40/4500+30:900+30"]

1. Nf3 {[%emt 0:00:00]} c5 {[%emt 0:00:00]} 2. e4 {[%emt 0:00:00]} Nc6 {[%emt 0:00:00]} 3. d4 {[%emt 0:00:00]} cxd4 {[%emt 0:00:00]} 4. Nxd4 {[%emt 0:00:00]} e5 {[%emt 0:00:00]} 5. Nb5 {[%emt 0:00:00]} a6 {[%emt 0:00:00]} 6. Nd6+ {[%emt 0:00:00]} Bxd6 {[%emt 0:00:00]} 7. Qxd6 {[%emt 0:00:00]} Qe7 {[%emt 0:00:00]} 8. Qxe7+ {[%emt 0:00:00]} Ngxe7 {[%emt 0:00:00]} 9. Be3 {[%emt 0:00:00]} d5 {[%emt 0:00:00]} 10. exd5 {[%emt 0:00:00]} Nxd5 {[%emt 0:00:00]} 11. Bd2 {[%emt 0:00:00]} Be6 {[%emt 0:00:00]} 12. Nc3 {[%emt 0:00:00]} O-O-O {[%emt 0:00:05]} 13. O-O-O {[%emt 0:00:00]} Kb8 {[%emt 0:01:36]} 14. Be2 {[%emt 0:02:12]} Nd4 {[%emt 0:02:58]} 15. Bd3 {[%emt 0:05:21]} Nb4 {[%emt 0:00:51]} 16. Be3 {[%emt 0:01:28]} Nxd3+ {[%emt 0:01:53]} 17. Rxd3 {[%emt 0:00:20]} Bc4 {[%emt 0:00:19]} 18. Rd2 {[%emt 0:00:20]} Nf5 {[%emt 0:06:03]} 19. Rxd8+ {[%emt 0:05:30]} Rxd8 {[%emt 0:00:05]} 20. Bc5 {[%emt 0:01:08]} Kc7 {[%emt 0:04:29]} 21. Rd1 {[%emt 0:01:50]} Rxd1+ {[%emt 0:00:52]} 22. Kxd1 {[%emt 0:01:37]} Nh4 {[%emt 0:04:48]} 23. Bf8 {[%emt 0:04:03]} g6 {[%emt 0:00:28]} 24. Bg7 {[%emt 0:00:22]} Nxg2 {[%emt 0:03:49]} 25. Bxe5+ {[%emt 0:00:20]} Kd7 {[%emt 0:00:23]} 26. Bg3 {[%emt 0:00:24]} f5 {[%emt 0:00:06]} 27. b3 {[%emt 0:05:01]} Be6 {[%emt 0:02:53]} 28. Be5 {[%emt 0:02:04]} Kc6 {[%emt 0:04:27]} 29. Ke2 {[%emt 0:02:47]} Bd5 {[%emt 0:01:59]} 30. Nxd5 {[%emt 0:02:29]} Kxd5 {[%emt 0:00:05]} 31. Bb8 {[%emt 0:01:03]} b5 {[%emt 0:04:28]} 32. c3 {[%emt 0:02:13]} g5 {[%emt 0:00:43]} 33. Bc7 {[%emt 0:03:02]} h6 {[%emt 0:01:41]} 34. f3 {[%emt 0:03:00]} Nh4 {[%emt 0:00:17]} 35. h3 {[%emt 0:01:42]} Ng6 {[%emt 0:01:46]} 36. Bg3 {[%emt 0:05:40]} h5 {[%emt 0:01:14]} 37. Kd2 {[%emt 0:06:26]} Nf8 {[%emt 0:15:11]} 38. Kd3 {[%emt 0:00:41]} Ne6 {[%emt 0:00:55]} 39. c4+ {[%emt 0:00:49]} bxc4+ {[%emt 0:00:39]} 40. bxc4+ {[%emt 0:00:08]} Kc5 {[%emt 0:01:19]} 41. Kc3 {[%emt 0:15:31]} g4 {[%emt 0:15:15]} 42. hxg4 {[%emt 0:00:21]} hxg4 {[%emt 0:00:10]} 43. fxg4 {[%emt 0:00:07]} fxg4 {[%emt 0:00:06]} 44. Bf2+ {[%emt 0:00:38]} Kc6 {[%emt 0:00:14]} 45. Kb4 {[%emt 0:00:22]} Ng5 {[%emt 0:00:25]} 46. Ka5 {[%emt 0:00:24]} Ne4 {[%emt 0:00:05]} 47. Bg1 {[%emt 0:00:14]} Kb7 {[%emt 0:00:41]} 48. c5 {[%emt 0:00:23]} g3 {[%emt 0:01:09]} 49. c6+ {[%emt 0:00:31]} Kxc6 {[%emt 0:00:01]} 50. Kxa6 {[%emt 0:00:10]} Nc3 {[%emt 0:00:09]} 51. a3 {[%emt 0:00:23]} g2 {[%emt 0:00:07]} 52. Ka5 {[%emt 0:00:34]} Ne2 {[%emt 0:00:51]} 53. Bf2 {[%emt 0:00:09]} Nf4 {[%emt 0:01:10]} 54. Ka4 {[%emt 0:00:29]} Nh3 {[%emt 0:00:05]} 55. Ba7 {[%emt 0:02:39]} Kd5 {[%emt 0:00:11]} 56. Kb5 {[%emt 0:00:17]} Ke4 {[%emt 0:00:02]} 57. a4 {[%emt 0:00:20]} Kf3 {[%emt 0:00:03]} 58. a5 {[%emt 0:00:11]} Nf2 {[%emt 0:00:02]} 59. Bxf2 {[%emt 0:00:13]} Kxf2 {[%emt 0:00:03]} 60. a6 {[%emt 0:00:55]} g1=Q {[%emt 0:00:05]} 61. Kb6 {[%emt 0:00:29]} Qg8 {[%emt 0:00:09]} 62. Kb7 {[%emt 0:00:11]} Qf7+ {[%emt 0:00:03]} 63. Kb8 {[%emt 0:00:15]} Qe8+ {[%emt 0:00:05]} 64. Ka7 {[%emt 0:00:17]} Qc8 {[%emt 0:00:08]} 65. Kb6 {[%emt 0:00:08]} Qa8 {[%emt 0:00:02]} 66. Kc7 {[%emt 0:00:20]} Qxa6 {[%emt 0:00:05]} 67. Kb8 {[%emt 0:00:06]} Kf3 {[%emt 0:00:06]} 68. Kc7 {[%emt 0:00:05]} Qe6 {[%emt 0:00:10]} 69. Kd8 {[%emt 0:00:09]} Qf7 {[%emt 0:00:05]} 0-1

[Event "GER-ch Youth-U12 2022"]
[Site "Willingen"]
[Date "2022.06.11"]
[Round "9.9"]
[White "Neuhoff, Laertes"]
[Black "Bangert, Jonas"]
[Result "0-1"]
[ECO "B32"]
[WhiteElo "1990"]
[BlackElo "1483"]
[Annotator "TA"]
[PlyCount "60"]
[EventDate "2022.06.05"]
[EventType "swiss"]
[EventRounds "9"]
[EventCountry "GER"]
[SourceTitle "playchess.com"]
[Source "ChessBase"]
[SourceQuality "1"]
[TimeControl "40/4500+30:900+30"]

{[%evp 18,60,46,26,18,28,37,17,28,-33,53,46,58,51,49,59,103,-187,-118,-297,-286,-554,-559,-658,-653,-740,-291,-282,-282,-331,-341,-404,-385,-541,-521,-1340,-975,-29990,-29991,-29991,-29992,-29997,-1718,-29997,-29998]} 1. e4 {[%emt 0:00:00]} c5 {[%emt 0:00:00]} 2. Nf3 {[%emt 0:00:00][%cal Bg1f3,Bf3d4,Bd4b5,Bb5a3][%mdl 32]} Nc6 {[%emt 0:00:05]} 3. d4 {[%emt 0:00:00]} cxd4 {[%emt 0:00:00]} 4. Nxd4 {[%emt 0:00:00]} e5 {[%emt 0:00:00]} 5. Nb5 {[%emt 0:00:00]} d6 {[%emt 0:00:00]} 6. N1c3 {[%emt 0:00:00]} a6 {[%emt 0:00:00]} 7. Na3 {[%emt 0:00:00]} b5 {[%emt 0:00:00]} 8. Nd5 {[%emt 0:00:00]} Nge7 {[%emt 0:00:00]} 9. c4 {[%emt 0:16:45]} Nd4 {[%emt 0:00:00] The old main line.} 10. Be3 {[%emt 0:10:46][%cal Rc4b5]} Nxd5 {[%emt 0:00:00] B32: Sicilian: Löwenthal and Kalashnikov Variations.} 11. cxd5 {[%emt 0:06:09]} (11. exd5 {seems wilder.} Nf5 12. Bc1 Be7 13. cxb5 O-O 14. Bd3) 11... f5 {[%emt 0:30:06]} 12. Bxd4 {[%emt 0:07:09]} exd4 {[%emt 0:01:04] The position is equal.} 13. Qxd4 {[%emt 0:00:59] [#]} (13. Bd3 $1 $11) 13... fxe4 $146 {[%emt 0:20:16]} (13... Be7) ({Better is} 13... Be7 $15) ({Predecessor:} 13... Be7 14. exf5 O-O 15. g4 Bf6 16. Qd2 Qe7+ 17. Be2 Re8 18. Kf1 Qe4 19. Rg1 Bb7 {0-1 (50) Baron,T (2257)-Libiszewski,F (2498) Cap d'Agde 2010}) 14. Qxe4+ $14 {[%emt 0:01:56]} Be7 {[%emt 0:00:10][%cal Bf8e7,Be7h4,Bh4g5][%mdl 32] White must now prevent ...Qa5+.} 15. Bd3 {[%emt 0:02:23]} Qa5+ {[%emt 0:15:17]} 16. Kf1 {[%emt 0:04:06] Strongly threatening Re1.} g6 {[%emt 0:02:19]} 17. g4 $2 {[%emt 0:04:15][%mdl 8192] [#]} (17. Re1 $16 {[%csl Ge1][%cal Re4e7] and life is bright.} Qc7 18. Nc2) 17... Qb6 {[%emt 0:03:03]} (17... O-O $1 $19 18. Kg2 (18. Qxe7 Bxg4 19. Nc2 Qd2 $19) 18... Bf6) 18. Re1 $2 {[%emt 0:15:02]} (18. Kg2 $17 O-O 19. Rhf1) 18... O-O $19 {[%emt 0:02:03][%csl Gf8][%cal Rb6f2]} 19. Re2 {[%emt 0:00:16]} ({Don't play} 19. Qe3 Qxe3 20. Rxe3 Bh4 $19) (19. f3 {was necessary.} Bh4 20. Qe3 Qxe3 21. Rxe3 Bxg4 22. Be4) 19... Bh4 {[%emt 0:00:36][%cal Rf8f2]} 20. f3 {[%emt 0:00:36]} Bd7 {[%emt 0:01:10][%cal Bc8d7,Bd7g4,Bg4f3][%mdl 32] aiming for ...Rae8.} 21. Qe3 {[%emt 0:02:39] [#]} Qxe3 {[%emt 0:03:03]} (21... Bxg4 $1 22. Qxb6 (22. Kg2 Bxf3+) 22... Bh3+ 23. Kg1 Rxf3) 22. Rxe3 {[%emt 0:00:01]} Bxg4 $1 {[%emt 0:00:36]} 23. Kg2 {[%emt 0:03:55]} Bg5 {[%emt 0:01:53]} 24. f4 {[%emt 0:02:03]} Rxf4 {[%emt 0:02:39] And now ...Raf8 would win.} 25. Rhe1 {[%emt 0:01:07]} (25. h4 $142 Bh6 26. Rg3) 25... Raf8 {[%emt 0:00:52]} 26. Kg3 {[%emt 0:01:54]} Bf3 {[%emt 0:01:02] ( -> ...Rg4+)} 27. Kh3 {[%emt 0:02:00]} Rh4+ {[%emt 0:00:51]} 28. Kg3 {[%emt 0:00:11]} Rg4+ {[%emt 0:00:38]} 29. Kf2 {[%emt 0:00:52]} Bh4+ {[%emt 0:00:34] A strong pair of Bishops.} 30. Kf1 {[%emt 0:00:11]} Bd1+ {[%emt 0:00:29] Weighted Error Value: White=1.49/Black=0.76} 0-1

[Event "GER-ch Youth-U12 2022"]
[Site "Willingen"]
[Date "2022.06.11"]
[Round "9.10"]
[White "Mandalka, Justus"]
[Black "Gloeckler, Christian"]
[Result "0-1"]
[ECO "B91"]
[WhiteElo "1402"]
[BlackElo "1869"]
[Annotator "NA RC COMBH"]
[PlyCount "84"]
[EventDate "2022.06.05"]
[EventType "swiss"]
[EventRounds "9"]
[EventCountry "GER"]
[SourceTitle "playchess.com"]
[Source "ChessBase"]
[SourceQuality "1"]
[TimeControl "40/4500+30:900+30"]

1. e4 {[%emt 0:00:00]} c5 {[%emt 0:00:00]} 2. Nf3 {[%emt 0:00:00]} d6 {[%emt 0:00:00]} 3. d4 {[%emt 0:00:00]} cxd4 {[%emt 0:00:00]} 4. Nxd4 {[%emt 0:00:00]} Nf6 {[%emt 0:00:00]} 5. Nc3 {[%emt 0:00:00]} a6 {[%emt 0:00:00]} 6. g3 {[%emt 0:00:00]} e5 {[%emt 0:00:00]} 7. Nde2 {[%emt 0:00:00]} Be7 {[%emt 0:00:00]} 8. Bg2 {[%emt 0:00:00]} O-O {[%emt 0:00:00]} 9. O-O {[%emt 0:00:00]} Nc6 {[%emt 0:00:00]} 10. Nd5 {[%emt 0:00:00]} Nxd5 {[%emt 0:00:00]} 11. Qxd5 {[%emt 0:00:00]} Qc7 {[%emt 0:00:00]} 12. Qd1 {[%emt 0:00:00]} Be6 {[%emt 0:00:00]} 13. Be3 {[%emt 0:00:00]} Rac8 {[%emt 0:00:00]} 14. Nc3 {[%emt 0:03:53]} Na5 {[%emt 0:00:00]} 15. f4 {[%emt 0:05:39]} Nc4 {[%emt 0:00:00]} 16. Bc1 {[%emt 0:00:07]} Qb6+ {[%emt 0:01:13]} 17. Kh1 {[%emt 0:00:09]} Nxb2 {[%emt 0:03:24]} 18. Qf3 {[%emt 0:03:49]} Qb4 {[%emt 0:07:21]} 19. Rb1 {[%emt 0:06:02]} (19. Nd5 $17 Bxd5 20. exd5) 19... Qxc3 {[%emt 0:03:51]} 20. Qxc3 {[%emt 0:01:54]} Rxc3 {[%emt 0:00:10]} 21. Rxb2 {[%emt 0:00:09]} b5 {[%emt 0:01:04]} 22. Bd2 {[%emt 0:02:01]} Rc4 {[%emt 0:00:46]} 23. Bb4 {[%emt 0:04:12]} f6 {[%emt 0:02:14]} ({Black should try} 23... exf4 $19 24. gxf4 Bf6) 24. Rd1 {[%emt 0:03:15]} Rd8 {[%emt 0:00:58]} 25. c3 {[%emt 0:01:44]} Kf7 {[%emt 0:04:40]} 26. Rbd2 {[%emt 0:02:51]} Rc6 {[%emt 0:00:29]} 27. Bf3 {[%emt 0:04:58] [#]} Ke8 {[%emt 0:01:50]} ({Black should try} 27... Ra8 $1 28. Be2 g6) 28. Ra1 {[%emt 0:03:57]} Rc4 $15 {[%emt 0:20:25]} 29. f5 {[%emt 0:09:15]} Bc8 {[%emt 0:03:07]} 30. a4 {[%emt 0:06:01]} bxa4 {[%emt 0:02:01]} 31. Rxa4 {[%emt 0:03:40]} Bb7 {[%emt 0:06:49]} 32. Kg2 {[%emt 0:02:02]} Ra8 {[%emt 0:05:38]} 33. Re2 {[%emt 0:01:54]} Kd7 {[%emt 0:01:30]} 34. Kf2 {[%emt 0:01:33]} Bd8 {[%emt 0:01:48]} 35. Rea2 {[%emt 0:09:20]} Bb6+ {[%emt 0:01:39]} 36. Kg2 {[%emt 0:01:12]} a5 {[%emt 0:03:56]} 37. Be2 {[%emt 0:00:56]} Rxe4 {[%emt 0:01:14]} 38. Bb5+ {[%emt 0:00:15]} Kc7 {[%emt 0:01:22]} 39. Kh3 {[%emt 0:00:58]} Ra7 {[%emt 0:01:39]} 40. Bxa5 {[%emt 0:00:35]} Rxa5 {[%emt 0:00:11]} 41. Rxa5 {[%emt 0:15:09]} Bxa5 {[%emt 0:15:07]} 42. Rxa5 {[%emt 0:00:12]} Kb6 {[%emt 0:00:06]} 0-1

[Event "GER-ch Youth-U12 2022"]
[Site "Willingen"]
[Date "2022.06.11"]
[Round "9.11"]
[White "Wartenberg, Alexander"]
[Black "Aweh, Mads"]
[Result "1-0"]
[ECO "B33"]
[WhiteElo "1682"]
[BlackElo "1438"]
[Annotator "NA RC COMBH"]
[PlyCount "95"]
[EventDate "2022.06.05"]
[EventType "swiss"]
[EventRounds "9"]
[EventCountry "GER"]
[SourceTitle "playchess.com"]
[Source "ChessBase"]
[SourceQuality "1"]
[TimeControl "40/4500+30:900+30"]

1. e4 {[%emt 0:00:00]} c5 {[%emt 0:00:00]} 2. Nf3 {[%emt 0:00:00]} Nc6 {[%emt 0:00:00]} 3. d4 {[%emt 0:00:00]} cxd4 {[%emt 0:00:00]} 4. Nxd4 {[%emt 0:00:00]} Nf6 {[%emt 0:00:00]} 5. Nc3 {[%emt 0:00:00]} e5 {[%emt 0:00:00]} 6. Ndb5 {[%emt 0:00:00]} d6 {[%emt 0:00:00]} 7. Bg5 {[%emt 0:00:00]} a6 {[%emt 0:00:00]} 8. Na3 {[%emt 0:00:00]} b5 {[%emt 0:00:00]} 9. Nd5 {[%emt 0:00:00]} Be7 {[%emt 0:00:00]} 10. Bxf6 {[%emt 0:00:00]} Bxf6 {[%emt 0:00:00]} 11. c3 {[%emt 0:00:00]} Bg5 {[%emt 0:00:00]} 12. Nc2 {[%emt 0:00:00]} Rb8 {[%emt 0:00:00]} 13. a4 {[%emt 0:00:00]} bxa4 {[%emt 0:00:00]} 14. Ncb4 {[%emt 0:00:00]} Nxb4 {[%emt 0:00:00]} 15. cxb4 {[%emt 0:00:00]} O-O {[%emt 0:00:22]} 16. Rxa4 {[%emt 0:00:00]} a5 {[%emt 0:00:58]} 17. b5 {[%emt 0:00:00]} Bd7 {[%emt 0:02:45]} 18. Nc3 {[%emt 0:00:00]} Qb6 {[%emt 0:04:15]} 19. Be2 {[%emt 0:00:00]} Rfc8 {[%emt 0:02:12]} 20. O-O {[%emt 0:00:00]} Rc5 {[%emt 0:02:55]} 21. Qd3 {[%emt 0:02:17]} Qc7 {[%emt 0:08:43]} 22. Rd1 {[%emt 0:01:21]} Be7 {[%emt 0:01:44]} 23. Qb1 {[%emt 0:13:05]} g6 {[%emt 0:06:35]} 24. Rd5 {[%emt 0:07:35]} Ra8 {[%emt 0:19:51]} 25. Qa1 {[%emt 0:01:56]} Be6 {[%emt 0:07:46]} 26. Rxc5 {[%emt 0:01:59]} dxc5 {[%emt 0:00:14]} 27. Bc4 {[%emt 0:01:48]} Qb6 {[%emt 0:04:02]} 28. Bxe6 {[%emt 0:00:58]} fxe6 {[%emt 0:00:04]} 29. Qf1 {[%emt 0:04:12]} Rd8 {[%emt 0:01:40]} 30. Ra1 {[%emt 0:01:32]} Rd2 {[%emt 0:01:30]} 31. g3 {[%emt 0:04:27]} Bd8 {[%emt 0:01:56]} 32. Rd1 {[%emt 0:01:45]} Rd6 {[%emt 0:01:38]} 33. Rxd6 {[%emt 0:02:40]} Qxd6 {[%emt 0:00:06]} 34. Qd1 {[%emt 0:00:09]} Qd4 {[%emt 0:01:18]} 35. Qxd4 {[%emt 0:03:42]} exd4 {[%emt 0:01:36]} 36. Na4 {[%emt 0:00:27]} Be7 {[%emt 0:00:50]} 37. b3 {[%emt 0:01:34]} Kf7 {[%emt 0:02:07]} 38. b6 {[%emt 0:01:49]} e5 {[%emt 0:04:35]} 39. b7 {[%emt 0:00:22]} Bd6 {[%emt 0:00:23]} 40. Nxc5 {[%emt 0:00:06]} Ke7 {[%emt 0:00:55]} 41. Na6 {[%emt 0:16:42]} Kd7 {[%emt 0:15:13]} 42. f4 {[%emt 0:06:44]} exf4 {[%emt 0:02:05]} 43. gxf4 {[%emt 0:00:27]} Bxf4 {[%emt 0:01:17]} 44. b8=Q {[%emt 0:00:19]} Bxb8 {[%emt 0:00:03]} 45. Nxb8+ {[%emt 0:00:07]} Kc7 {[%emt 0:00:08]} 46. Na6+ {[%emt 0:00:06]} Kd6 {[%emt 0:00:43]} 47. Kf2 {[%emt 0:00:42]} Ke5 {[%emt 0:00:29]} 48. Kf3 {[%emt 0:00:11]} 1-0

[Event "GER-ch Youth-U12 2022"]
[Site "Willingen"]
[Date "2022.06.11"]
[Round "9.12"]
[White "Albrecht, Neil"]
[Black "Uyar, Levin"]
[Result "1/2-1/2"]
[ECO "C56"]
[WhiteElo "1376"]
[BlackElo "1306"]
[Annotator "NA RC COMBH"]
[PlyCount "92"]
[EventDate "2022.06.05"]
[EventType "swiss"]
[EventRounds "9"]
[EventCountry "GER"]
[SourceTitle "playchess.com"]
[Source "ChessBase"]
[SourceQuality "1"]
[TimeControl "40/4500+30:900+30"]

1. e4 {[%emt 0:00:00]} e5 {[%emt 0:00:00]} 2. Nf3 {[%emt 0:00:00]} Nc6 {[%emt 0:00:00]} 3. Bc4 {[%emt 0:00:00]} Nf6 {[%emt 0:00:00]} 4. d4 {[%emt 0:00:00]} exd4 {[%emt 0:00:00]} 5. e5 {[%emt 0:00:00]} d5 {[%emt 0:00:00]} 6. Bb5 {[%emt 0:00:00]} Ne4 {[%emt 0:00:00]} 7. Nxd4 {[%emt 0:00:00]} Bc5 {[%emt 0:00:00]} 8. Be3 {[%emt 0:00:00]} O-O {[%emt 0:00:00]} 9. Bxc6 {[%emt 0:00:00]} bxc6 {[%emt 0:00:00]} 10. O-O {[%emt 0:00:00]} Qe8 {[%emt 0:00:55]} 11. f3 {[%emt 0:00:00]} Nd6 {[%emt 0:01:44]} 12. Bf4 {[%emt 0:05:07]} Nc4 {[%emt 0:07:32]} 13. b3 {[%emt 0:05:19]} Nxe5 {[%emt 0:04:12]} 14. Re1 {[%emt 0:00:32]} Bxd4+ {[%emt 0:00:51]} 15. Qxd4 {[%emt 0:00:25]} Nxf3+ {[%emt 0:00:14]} 16. gxf3 {[%emt 0:00:13]} Qxe1+ {[%emt 0:00:07]} 17. Kg2 {[%emt 0:00:06]} Qe2+ {[%emt 0:00:56]} 18. Qf2 {[%emt 0:00:25]} Qxf2+ {[%emt 0:00:28]} 19. Kxf2 {[%emt 0:00:06]} Bf5 {[%emt 0:00:04]} 20. Nc3 {[%emt 0:00:15]} Bxc2 {[%emt 0:00:38]} 21. Rc1 {[%emt 0:00:07]} Bf5 {[%emt 0:00:21]} 22. Na4 {[%emt 0:00:10]} Bd7 {[%emt 0:00:41]} 23. Nc5 {[%emt 0:00:20]} Be6 {[%emt 0:04:56]} 24. Na6 {[%emt 0:00:50]} Bd7 {[%emt 0:07:40]} 25. Nb4 {[%emt 0:04:22]} Rac8 {[%emt 0:01:50]} 26. Na6 {[%emt 0:00:49]} Rfe8 {[%emt 0:09:51]} 27. Nxc7 {[%emt 0:00:20]} Rxc7 {[%emt 0:00:40]} 28. Bxc7 {[%emt 0:00:13]} f6 {[%emt 0:02:27]} 29. Bd6 {[%emt 0:00:40]} Kf7 {[%emt 0:01:48]} 30. Bc5 {[%emt 0:00:29]} Rc8 {[%emt 0:02:33]} 31. a3 {[%emt 0:00:37]} a6 {[%emt 0:01:32]} 32. b4 {[%emt 0:00:09]} Bf5 {[%emt 0:04:27]} 33. Rc3 {[%emt 0:00:57]} Bb1 {[%emt 0:01:20]} 34. Re3 {[%emt 0:05:53]} Re8 {[%emt 0:00:17]} 35. Rxe8 {[%emt 0:00:04]} Kxe8 {[%emt 0:00:05]} 36. Ke3 {[%emt 0:01:09]} Kf7 {[%emt 0:00:29]} 37. Bd4 {[%emt 0:00:23]} Ke6 {[%emt 0:00:53]} 38. Kf4 {[%emt 0:00:09]} Bc2 {[%emt 0:03:34]} 39. h4 {[%emt 0:00:23]} Bd1 {[%emt 0:00:51]} 40. Kg4 {[%emt 0:05:00]} h6 {[%emt 0:09:21]} 41. h5 {[%emt 0:17:02]} Bxf3+ {[%emt 0:22:10]} 42. Kxf3 {[%emt 0:00:07]} Kf5 {[%emt 0:00:07]} 43. Be3 {[%emt 0:00:38]} g6 {[%emt 0:00:00]} 44. hxg6 {[%emt 0:00:00]} Kxg6 {[%emt 0:00:00]} 45. Kf4 {[%emt 0:00:00]} h5 {[%emt 0:00:00]} 46. Bf2 {[%emt 0:00:00]} f5 {[%emt 0:00:58]} 1/2-1/2

[Event "GER-ch Youth-U12 2022"]
[Site "Willingen"]
[Date "2022.06.11"]
[Round "9.13"]
[White "Burkart, Lloyd Shang"]
[Black "Wang, Arthur D"]
[Result "1/2-1/2"]
[ECO "E06"]
[WhiteElo "1559"]
[BlackElo "2090"]
[Annotator "TA"]
[PlyCount "99"]
[EventDate "2022.06.05"]
[EventType "swiss"]
[EventRounds "9"]
[EventCountry "GER"]
[SourceTitle "playchess.com"]
[Source "ChessBase"]
[SourceQuality "1"]
[TimeControl "40/4500+30:900+30"]

{[%evp 16,99,0,10,22,-97,-108,-91,-104,-110,-68,-66,0,-70,-70,-123,-75,-128,-118,-201,-203,-214,-97,-103,-98,-106,-102,-96,-100,-79,-91,-139,-84,-133,-74,-74,-79,-152,-163,-142,-85,-140,-146,-146,-163,-189,-78,-85,-82,-81,-81,-89,-93,-124,-125,-120,-88,-82,-93,-132,-121,-284,-297,-417,-218,-233,-8,-47,-42,-42,-29,-29,-25,-29,-29,-29,0,-29,0,-30,-25,-30,-25,-37,-37,-44]} 1. c4 {[%emt 0:00:00]} Nf6 {[%emt 0:00:00]} 2. g3 {[%emt 0:00:00]} e6 {[%emt 0:00:00]} 3. Bg2 {[%emt 0:00:00]} d5 {[%emt 0:00:00]} 4. Nf3 {[%emt 0:00:00]} c6 {[%emt 0:00:00]} 5. Qc2 {[%emt 0:00:00]} Be7 {[%emt 0:00:00]} 6. O-O {[%emt 0:00:00]} O-O {[%emt 0:00:00]} 7. d4 {[%emt 0:00:00]} b6 $1 {[%emt 0:00:00][%mdl 4] is recently more successful than 7...Nbd7.} 8. Nbd2 {[%emt 0:00:00]} Bb7 {[%emt 0:00:00]} 9. e4 {[%emt 0:00:00]} dxc4 {[%emt 0:00:00] E06: Closed Catalan: Early deviations.} 10. Qxc4 {[%emt 0:00:00]} (10. Nxc4 $11 {keeps the balance.} Nbd7 11. Bg5) 10... Ba6 $17 {[%emt 0:00:00]} 11. Qc2 {[%emt 0:01:23]} Bxf1 {[%emt 0:00:00] [#] Black is better.} 12. Nxf1 $146 {[%emt 0:00:39]} (12. Bxf1 a6 13. h4 c5 14. e5 Nd5 15. dxc5 bxc5 16. Qe4 Nd7 17. Bd3 g6 18. Nc4) ({Predecessor:} 12. Bxf1 a6 13. h4 c5 14. e5 Nd5 15. dxc5 bxc5 16. Qe4 Nd7 17. Bd3 g6 18. Nc4 {0-1 (35) Foshenko,K (1607)-Evsyukov,A (1909) Voronezh 2016}) 12... Na6 {[%emt 0:00:27]} 13. Qe2 {[%emt 0:06:23]} Nb8 {[%emt 0:04:12]} (13... b5 $15) 14. Bf4 {[%emt 0:01:47]} ({White should play} 14. Qc2 $11) 14... Nbd7 $15 {[%emt 0:03:05]} 15. Ne5 {[%emt 0:03:12]} (15. Rd1 $15) 15... Rc8 {[%emt 0:04:29]} ({Better is} 15... Nxe5 16. Bxe5 Rc8) 16. Rd1 {[%emt 0:01:52]} (16. Nc4 $142) 16... Nxe5 $17 {[%emt 0:06:13]} 17. dxe5 {[%emt 0:02:54]} (17. Bxe5 $17 b5 18. h4) 17... Nd7 $19 {[%emt 0:00:23]} 18. Qg4 {[%emt 0:03:34]} Qc7 {[%emt 0:05:52]} (18... Kh8 $1 $19 {Strongly threatening ...Qc7.} 19. Qf3 Qc7) 19. Bh6 $17 {[%emt 0:00:35][%csl Gh6][%cal Rg4g7] [#]} g6 {[%emt 0:00:53]} 20. Bxf8 {[%emt 0:00:40]} Nxe5 {[%emt 0:02:02]} (20... Bxf8 $6 21. f4 $11) 21. Qe2 {[%emt 0:01:04] And now Bxe7 would win.} Bxf8 {[%emt 0:01:16]} ({But not} 21... Rxf8 $6 22. f4 $15) 22. f4 {[%emt 0:02:16]} Nd7 {[%emt 0:04:48]} ({Much weaker is} 22... Bc5+ $6 23. Kh1 $11) 23. Qf3 {[%emt 0:04:48]} (23. e5 $142) 23... Rd8 {[%emt 0:04:43]} (23... e5 $142 24. Ne3 Bc5) 24. Kh1 {[%emt 0:14:49]} (24. e5 $142 Bc5+ 25. Kh1) 24... Bc5 {[%emt 0:03:43]} (24... e5 $142 25. Ne3 Nc5) 25. e5 {[%emt 0:02:47]} Nb8 {[%emt 0:00:27]} 26. g4 {[%emt 0:08:42]} (26. h4) (26. h4 $142) 26... Rxd1 {[%emt 0:04:57]} 27. Qxd1 {[%emt 0:00:03]} Qe7 {[%emt 0:00:16]} (27... g5 28. fxg5 Be7) (27... g5 $142 28. fxg5 Be7) 28. g5 {[%emt 0:04:16]} ({White should try} 28. Qd2) 28... b5 {[%emt 0:02:54]} 29. Qc1 {[%emt 0:14:18] [#]} Bb6 $1 {[%emt 0:01:05]} 30. Bf3 {[%emt 0:04:51]} Qc5 {[%emt 0:01:49]} (30... Qb4 $19 {is more deadly. aiming for ...Qd4.} 31. Kg2 Qd4) 31. Qxc5 {[%emt 0:00:25]} Bxc5 {[%emt 0:00:05][%mdl 4096] Endgame KBN-KBN} 32. Kg2 {[%emt 0:00:04]} Kf8 {[%emt 0:00:30]} 33. Kg3 {[%emt 0:00:26]} Ke7 {[%emt 0:00:24]} 34. Nd2 {[%emt 0:00:06]} Bd4 {[%emt 0:00:58]} 35. b3 {[%emt 0:00:32]} c5 {[%emt 0:00:42]} 36. Be2 {[%emt 0:04:43] [#]} a6 {[%emt 0:02:52]} 37. Kf3 {[%emt 0:01:10]} Nc6 {[%emt 0:01:50]} 38. a3 $2 {[%emt 0:02:57]} (38. Ne4 $17 {keeps fighting.}) 38... Bb2 $19 {[%emt 0:03:15]} 39. a4 {[%emt 0:00:48]} (39. Bd1 {was necessary.}) 39... bxa4 {[%emt 0:00:30]} (39... Nd4+ $142 40. Ke3 c4 41. Bxc4 bxc4 42. Nxc4 Ba1) 40. bxa4 {[%emt 0:00:10]} a5 {[%emt 0:00:58]} (40... Nd4+ $19 41. Ke3 Nxe2 42. Kxe2 Bc1) 41. Nb3 {[%emt 0:17:06]} Nd4+ {[%emt 0:15:09]} 42. Nxd4 {[%emt 0:00:05]} Bxd4 $15 {[%emt 0:00:16] KB-KB} 43. Bc4 {[%emt 0:00:45]} Bc3 {[%emt 0:01:12]} 44. Ke4 {[%emt 0:00:28]} Bb4 {[%emt 0:00:13]} 45. Kf3 {[%emt 0:00:09]} Bc3 {[%emt 0:00:56]} 46. Ke4 {[%emt 0:00:05]} Bd4 {[%emt 0:00:34]} 47. Kf3 {[%emt 0:00:25]} Kf8 {[%emt 0:00:30]} 48. Bd3 {[%emt 0:02:14]} Kg7 {[%emt 0:00:40]} 49. Bc4 {[%emt 0:00:15]} h6 {[%emt 0:00:38]} 50. h4 {[%emt 0:04:24] And White is the lucky defender.  Weighted Error Value: White=0.32/Black=0.33} 1/2-1/2